[Event "Titled Tuesday Blitz December 7 2021"]
[White "Stankovic, Ivan G"]
[Black "Savchenko, Boris"]
[WhiteFideId "902837"]
[BlackFideId "4147332"]
[WhiteElo "2195"]
[BlackElo "2499"]
[Result "0-1"]
[Round "03"]
[TimeControl "180+1"]
[Date "2021.12.07"]
[WhiteClock "0:00:11"]
[BlackClock "0:00:43"]

1. e4 {[%clk 0:02:32]}  c5 {[%clk 0:01:29]} 2. c4 {[%clk 0:02:31]}  Nc6 {[%clk 0:01:29]} 3. Nc3 {[%clk 0:02:31]}  g6 {[%clk 0:01:29]} 4. g3 {[%clk 0:02:32]}  Bg7 {[%clk 0:01:30]} 5. Bg2 {[%clk 0:02:32]}  e6 {[%clk 0:01:30]} 6. Nge2 {[%clk 0:02:33]}  Nge7 {[%clk 0:01:30]} 7. d3 {[%clk 0:02:33]}  O-O {[%clk 0:01:29]} 8. Be3 {[%clk 0:02:34]}  Nd4 {[%clk 0:01:29]} 9. Rb1 {[%clk 0:02:35]}  a5 {[%clk 0:01:28]} 10. a3 {[%clk 0:02:35]}  b6 {[%clk 0:01:26]} 11. O-O {[%clk 0:02:35]}  Bb7 {[%clk 0:01:26]} 12. b4 {[%clk 0:02:31]}  axb4 {[%clk 0:01:27]} 13. axb4 {[%clk 0:02:31]}  d6 {[%clk 0:01:27]} 14. Qd2 {[%clk 0:02:26]}  Ra3 {[%clk 0:01:26]} 15. Bxd4 {[%clk 0:02:08]}  cxd4 {[%clk 0:01:26]} 16. Nb5 {[%clk 0:02:08]}  Ra4 {[%clk 0:01:26]} 17. Nbxd4 {[%clk 0:02:08]}  Qa8 {[%clk 0:01:25]} 18. Nb5 {[%clk 0:02:05]}  Ra2 {[%clk 0:01:25]} 19. Qe3 {[%clk 0:02:05]}  d5 {[%clk 0:01:25]} 20. exd5 {[%clk 0:02:03]}  Nf5 {[%clk 0:01:25]} 21. Qxb6 {[%clk 0:02:02]}  Ra6 {[%clk 0:01:22]} 22. Qc7 {[%clk 0:01:29]}  exd5 {[%clk 0:01:21]} 23. c5 {[%clk 0:01:25]}  Re8 {[%clk 0:01:16]} 24. Nf4 {[%clk 0:01:21]}  Be5 {[%clk 0:01:16]} 25. Qd7 {[%clk 0:01:05]}  Re7 {[%clk 0:01:03]} 26. Qxe7 {[%clk 0:00:46]}  Nxe7 {[%clk 0:01:02]} 27. d4 {[%clk 0:00:46]}  Bxf4 {[%clk 0:01:02]} 28. gxf4 {[%clk 0:00:47]}  Qc8 {[%clk 0:00:59]} 29. Nd6 {[%clk 0:00:37]}  Rxd6 {[%clk 0:00:58]} 30. cxd6 {[%clk 0:00:36]}  Nf5 {[%clk 0:00:59]} 31. Rbc1 {[%clk 0:00:34]}  Qd8 {[%clk 0:00:58]} 32. Rc7 {[%clk 0:00:32]}  Nxd6 {[%clk 0:00:58]} 33. Rfc1 {[%clk 0:00:29]}  Qf6 {[%clk 0:00:55]} 34. Rd7 {[%clk 0:00:26]}  Qxf4 {[%clk 0:00:55]} 35. Re1 {[%clk 0:00:22]}  Ba6 {[%clk 0:00:47]} 36. h3 {[%clk 0:00:18]}  Bb5 {[%clk 0:00:46]} 37. Rd8+ {[%clk 0:00:12]}  Kg7 {[%clk 0:00:45]} 38. Re3 {[%clk 0:00:12]}  Nf5 {[%clk 0:00:44]} 39. Rf3 {[%clk 0:00:11]}  Qxd4 {[%clk 0:00:43]} 0-1


[Site "https://www.chess.com"]

[Event "Titled Tuesday Blitz December 7 2021"]
[White "Starozhilov, Leonid"]
[Black "Bayo Milagro, Alvaro"]
[WhiteFideId "14106752"]
[BlackFideId "22275240"]
[WhiteElo "2414"]
[BlackElo "2270"]
[Result "1-0"]
[Round "03"]
[TimeControl "180+1"]
[Date "2021.12.07"]
[WhiteClock "0:00:04"]
[BlackClock "0:00:05"]

1. e4 {[%clk 0:02:39]}  e5 {[%clk 0:03:00]} 2. Nf3 {[%clk 0:02:39]}  Nc6 {[%clk 0:03:00]} 3. Bc4 {[%clk 0:02:38]}  Nf6 {[%clk 0:03:01]} 4. d3 {[%clk 0:02:38]}  Bc5 {[%clk 0:03:00]} 5. c3 {[%clk 0:02:37]}  d6 {[%clk 0:03:00]} 6. Nbd2 {[%clk 0:02:37]}  a5 {[%clk 0:02:53]} 7. Bb3 {[%clk 0:02:37]}  Be6 {[%clk 0:02:52]} 8. O-O {[%clk 0:02:33]}  O-O {[%clk 0:02:51]} 9. Re1 {[%clk 0:02:30]}  h6 {[%clk 0:02:47]} 10. Nc4 {[%clk 0:02:30]}  b5 {[%clk 0:02:37]} 11. Ne3 {[%clk 0:02:30]}  a4 {[%clk 0:02:36]} 12. Bc2 {[%clk 0:02:25]}  Bb6 {[%clk 0:02:31]} 13. d4 {[%clk 0:02:16]}  exd4 {[%clk 0:02:25]} 14. Nxd4 {[%clk 0:02:16]}  Nxd4 {[%clk 0:02:22]} 15. cxd4 {[%clk 0:02:17]}  d5 {[%clk 0:02:21]} 16. e5 {[%clk 0:02:14]}  Ne4 {[%clk 0:02:21]} 17. f3 {[%clk 0:02:02]}  Ng5 {[%clk 0:02:20]} 18. h4 {[%clk 0:02:01]}  Nh7 {[%clk 0:02:17]} 19. Qd3 {[%clk 0:02:01]}  g6 {[%clk 0:02:13]} 20. h5 {[%clk 0:02:01]}  Qh4 {[%clk 0:02:11]} 21. Bd2 {[%clk 0:01:57]}  Qxh5 {[%clk 0:02:05]} 22. g4 {[%clk 0:01:50]}  Qh3 {[%clk 0:01:57]} 23. Rf1 {[%clk 0:01:20]}  Ng5 {[%clk 0:01:48]} 24. Ng2 {[%clk 0:01:06]}  c5 {[%clk 0:01:17]} 25. Be1 {[%clk 0:00:51]}  c4 {[%clk 0:00:49]} 26. Qe3 {[%clk 0:00:50]}  Nxf3+ {[%clk 0:00:31]} 27. Rxf3 {[%clk 0:00:50]}  Qxg4 {[%clk 0:00:29]} 28. Rf4 {[%clk 0:00:40]}  Qh3 {[%clk 0:00:21]} 29. Qf2 {[%clk 0:00:22]}  g5 {[%clk 0:00:20]} 30. Rf6 {[%clk 0:00:20]}  Kg7 {[%clk 0:00:19]} 31. Bb4 {[%clk 0:00:17]}  Rfe8 {[%clk 0:00:18]} 32. Rf1 {[%clk 0:00:17]}  Ra7 {[%clk 0:00:18]} 33. Bf5 {[%clk 0:00:14]}  Bxf5 {[%clk 0:00:16]} 34. Rxf5 {[%clk 0:00:15]}  Kg8 {[%clk 0:00:09]} 35. Bc5 {[%clk 0:00:06]}  Bxc5 {[%clk 0:00:08]} 36. dxc5 {[%clk 0:00:07]}  Ree7 {[%clk 0:00:08]} 37. e6 {[%clk 0:00:07]}  Qh5 {[%clk 0:00:05]} 38. c6 {[%clk 0:00:04]} 1-0


[Site "https://www.chess.com"]

[Event "Titled Tuesday Blitz December 7 2021"]
[White "Svane, Rasmus"]
[Black "Silva, Miguel Antonio Neto"]
[WhiteFideId "4657101"]
[BlackFideId "1911929"]
[WhiteElo "2643"]
[BlackElo "2204"]
[Result "1-0"]
[Round "03"]
[TimeControl "180+1"]
[Date "2021.12.07"]
[WhiteClock "0:02:13"]
[BlackClock "0:01:50"]

1. Nf3 {[%clk 0:03:00]}  c5 {[%clk 0:02:58]} 2. c4 {[%clk 0:03:00]}  Nc6 {[%clk 0:02:57]} 3. Nc3 {[%clk 0:03:00]}  g6 {[%clk 0:02:57]} 4. e3 {[%clk 0:03:00]}  Nf6 {[%clk 0:02:56]} 5. d4 {[%clk 0:03:01]}  cxd4 {[%clk 0:02:57]} 6. exd4 {[%clk 0:03:02]}  d5 {[%clk 0:02:56]} 7. cxd5 {[%clk 0:03:03]}  Nxd5 {[%clk 0:02:56]} 8. Qb3 {[%clk 0:03:03]}  Nxc3 {[%clk 0:02:55]} 9. Bc4 {[%clk 0:03:03]}  Nd5 {[%clk 0:02:55]} 10. Bxd5 {[%clk 0:03:03]}  e6 {[%clk 0:02:55]} 11. Bxc6+ {[%clk 0:03:04]}  bxc6 {[%clk 0:02:56]} 12. O-O {[%clk 0:03:04]}  Qd5 {[%clk 0:02:52]} 13. Be3 {[%clk 0:02:48]}  Bg7 {[%clk 0:02:47]} 14. Rfc1 {[%clk 0:02:47]}  O-O {[%clk 0:02:45]} 15. Nd2 {[%clk 0:02:28]}  Ba6 {[%clk 0:02:37]} 16. Rc5 {[%clk 0:02:27]}  Qd7 {[%clk 0:02:24]} 17. Qc3 {[%clk 0:02:27]}  Rfc8 {[%clk 0:02:16]} 18. Rc1 {[%clk 0:02:25]}  Rab8 {[%clk 0:02:10]} 19. b3 {[%clk 0:02:24]}  Bb7 {[%clk 0:02:05]} 20. Nc4 {[%clk 0:02:22]}  f6 {[%clk 0:01:53]} 21. Bf4 {[%clk 0:02:18]}  Ra8 {[%clk 0:01:50]} 22. Nd6 {[%clk 0:02:13]} 1-0


[Site "https://www.chess.com"]

[Event "Titled Tuesday Blitz December 7 2021"]
[White "Sviridov, Valery"]
[Black "Rakhmanov, Aleksandr"]
[WhiteFideId "4120680"]
[BlackFideId "4173708"]
[WhiteElo "2454"]
[BlackElo "2500"]
[Result "1/2-1/2"]
[Round "03"]
[TimeControl "180+1"]
[Date "2021.12.07"]
[WhiteClock "0:00:53"]
[BlackClock "0:00:37"]

1. Nf3 {[%clk 0:03:00]}  Nf6 {[%clk 0:02:51]} 2. g3 {[%clk 0:03:00]}  g6 {[%clk 0:02:50]} 3. Bg2 {[%clk 0:03:00]}  Bg7 {[%clk 0:02:51]} 4. O-O {[%clk 0:03:01]}  O-O {[%clk 0:02:52]} 5. c4 {[%clk 0:03:01]}  c6 {[%clk 0:02:52]} 6. Nc3 {[%clk 0:03:00]}  d5 {[%clk 0:02:53]} 7. cxd5 {[%clk 0:03:00]}  cxd5 {[%clk 0:02:53]} 8. d4 {[%clk 0:03:01]}  Bd7 {[%clk 0:02:44]} 9. Bg5 {[%clk 0:02:57]}  Bc6 {[%clk 0:02:43]} 10. Ne5 {[%clk 0:02:56]}  e6 {[%clk 0:02:42]} 11. Qd2 {[%clk 0:02:54]}  Qb6 {[%clk 0:02:42]} 12. Rac1 {[%clk 0:02:51]}  Nfd7 {[%clk 0:02:38]} 13. Nf3 {[%clk 0:02:49]}  a5 {[%clk 0:02:35]} 14. h4 {[%clk 0:02:43]}  Nf6 {[%clk 0:02:33]} 15. Ne5 {[%clk 0:02:42]}  Nfd7 {[%clk 0:02:33]} 16. Nf3 {[%clk 0:02:20]}  Nf6 {[%clk 0:02:33]} 17. Bxf6 {[%clk 0:01:30]}  Bxf6 {[%clk 0:02:31]} 18. h5 {[%clk 0:01:31]}  Nd7 {[%clk 0:02:29]} 19. h6 {[%clk 0:01:29]}  Rfc8 {[%clk 0:02:26]} 20. Qf4 {[%clk 0:01:29]}  Qd8 {[%clk 0:02:23]} 21. e4 {[%clk 0:01:26]}  dxe4 {[%clk 0:01:37]} 22. Nxe4 {[%clk 0:01:27]}  Bxe4 {[%clk 0:01:37]} 23. Qxe4 {[%clk 0:01:28]}  Rab8 {[%clk 0:01:37]} 24. Rxc8 {[%clk 0:01:26]}  Qxc8 {[%clk 0:01:32]} 25. Qf4 {[%clk 0:01:23]}  Qd8 {[%clk 0:01:29]} 26. Rc1 {[%clk 0:01:17]}  Rc8 {[%clk 0:01:26]} 27. Rc3 {[%clk 0:01:12]}  Rxc3 {[%clk 0:01:14]} 28. bxc3 {[%clk 0:01:13]}  Be7 {[%clk 0:01:15]} 29. Ne5 {[%clk 0:01:10]}  Nxe5 {[%clk 0:01:12]} 30. Qxe5 {[%clk 0:01:11]}  Bf8 {[%clk 0:01:12]} 31. Bxb7 {[%clk 0:01:10]}  Bxh6 {[%clk 0:01:11]} 32. Kg2 {[%clk 0:01:07]}  Bg7 {[%clk 0:01:10]} 33. Qb5 {[%clk 0:01:06]}  h5 {[%clk 0:01:08]} 34. Bf3 {[%clk 0:00:54]}  Bf6 {[%clk 0:01:05]} 35. Qd3 {[%clk 0:00:50]}  Kg7 {[%clk 0:01:05]} 36. d5 {[%clk 0:00:42]}  exd5 {[%clk 0:00:57]} 37. Qxd5 {[%clk 0:00:43]}  Qxd5 {[%clk 0:00:46]} 38. Bxd5 {[%clk 0:00:44]}  Bxc3 {[%clk 0:00:46]} 39. f4 {[%clk 0:00:45]}  f5 {[%clk 0:00:39]} 40. Kf3 {[%clk 0:00:43]}  Be1 {[%clk 0:00:37]} 41. Bc4 {[%clk 0:00:43]}  Kf6 {[%clk 0:00:37]} 42. Bb3 {[%clk 0:00:43]}  Ke7 {[%clk 0:00:36]} 43. Bc4 {[%clk 0:00:44]}  Kf6 {[%clk 0:00:35]} 44. Bb3 {[%clk 0:00:44]}  h4 {[%clk 0:00:31]} 45. gxh4 {[%clk 0:00:44]}  Bxh4 {[%clk 0:00:32]} 46. Bc4 {[%clk 0:00:45]}  Be1 {[%clk 0:00:32]} 47. Bb3 {[%clk 0:00:45]}  Bc3 {[%clk 0:00:33]} 48. Bc4 {[%clk 0:00:45]}  g5 {[%clk 0:00:31]} 49. fxg5+ {[%clk 0:00:45]}  Kxg5 {[%clk 0:00:32]} 50. Bb3 {[%clk 0:00:45]}  Kf6 {[%clk 0:00:32]} 51. Bc4 {[%clk 0:00:45]}  Ke5 {[%clk 0:00:33]} 52. Bb3 {[%clk 0:00:46]}  Kd4 {[%clk 0:00:33]} 53. Bg8 {[%clk 0:00:46]}  f4 {[%clk 0:00:33]} 54. Bf7 {[%clk 0:00:47]}  a4 {[%clk 0:00:33]} 55. Bg8 {[%clk 0:00:48]}  a3 {[%clk 0:00:33]} 56. Bf7 {[%clk 0:00:49]}  Bb2 {[%clk 0:00:34]} 57. Bg8 {[%clk 0:00:50]}  Kc3 {[%clk 0:00:34]} 58. Bf7 {[%clk 0:00:51]}  Kd2 {[%clk 0:00:35]} 59. Bg8 {[%clk 0:00:52]}  Kc3 {[%clk 0:00:35]} 60. Bf7 {[%clk 0:00:52]}  Kd2 {[%clk 0:00:36]} 61. Bg8 {[%clk 0:00:53]}  Kc3 {[%clk 0:00:37]} 1/2-1/2


[Site "https://www.chess.com"]

[Event "Titled Tuesday Blitz December 7 2021"]
[White "Toncheva, Nadya"]
[Black "Siddharth, Jagadeesh"]
[WhiteFideId "2924056"]
[BlackFideId "5818320"]
[WhiteElo "1920"]
[BlackElo "2127"]
[Result "0-1"]
[Round "03"]
[TimeControl "180+1"]
[Date "2021.12.07"]
[WhiteClock "0:00:08"]
[BlackClock "0:00:18"]

1. e4 {[%clk 0:03:00]}  e5 {[%clk 0:02:57]} 2. Nf3 {[%clk 0:02:59]}  Nf6 {[%clk 0:02:57]} 3. Nxe5 {[%clk 0:02:59]}  d6 {[%clk 0:02:57]} 4. Nf3 {[%clk 0:02:59]}  Nxe4 {[%clk 0:02:57]} 5. d4 {[%clk 0:03:00]}  d5 {[%clk 0:02:57]} 6. Bd3 {[%clk 0:03:00]}  Bd6 {[%clk 0:02:57]} 7. O-O {[%clk 0:03:01]}  O-O {[%clk 0:02:58]} 8. Re1 {[%clk 0:03:00]}  Bf5 {[%clk 0:02:57]} 9. Nc3 {[%clk 0:02:57]}  Nxc3 {[%clk 0:02:55]} 10. bxc3 {[%clk 0:02:56]}  Bxd3 {[%clk 0:02:56]} 11. cxd3 {[%clk 0:02:55]}  Nd7 {[%clk 0:02:50]} 12. Bg5 {[%clk 0:02:53]}  f6 {[%clk 0:02:44]} 13. Bh4 {[%clk 0:02:52]}  c6 {[%clk 0:02:44]} 14. Bg3 {[%clk 0:02:50]}  Bxg3 {[%clk 0:02:40]} 15. hxg3 {[%clk 0:02:51]}  Re8 {[%clk 0:02:37]} 16. Qb3 {[%clk 0:02:49]}  Qb6 {[%clk 0:02:36]} 17. Rab1 {[%clk 0:02:42]}  Qxb3 {[%clk 0:02:28]} 18. axb3 {[%clk 0:02:40]}  Kf7 {[%clk 0:02:27]} 19. Kf1 {[%clk 0:02:37]}  Nb6 {[%clk 0:02:24]} 20. Ra1 {[%clk 0:02:33]}  a6 {[%clk 0:02:23]} 21. Re2 {[%clk 0:02:11]}  Nc8 {[%clk 0:02:20]} 22. Rxe8 {[%clk 0:02:09]}  Kxe8 {[%clk 0:02:21]} 23. Re1+ {[%clk 0:02:07]}  Kd7 {[%clk 0:02:21]} 24. c4 {[%clk 0:02:03]}  Nd6 {[%clk 0:02:20]} 25. Nd2 {[%clk 0:02:00]}  Nf5 {[%clk 0:02:11]} 26. Nf3 {[%clk 0:01:54]}  h5 {[%clk 0:02:11]} 27. Rc1 {[%clk 0:01:44]}  g5 {[%clk 0:02:06]} 28. cxd5 {[%clk 0:01:32]}  cxd5 {[%clk 0:02:07]} 29. Rc5 {[%clk 0:01:32]}  Kd6 {[%clk 0:02:07]} 30. Nd2 {[%clk 0:01:22]}  Nxd4 {[%clk 0:02:06]} 31. Rc1 {[%clk 0:01:19]}  Nc6 {[%clk 0:02:04]} 32. f4 {[%clk 0:01:02]}  g4 {[%clk 0:02:01]} 33. Kf2 {[%clk 0:01:01]}  Nb4 {[%clk 0:01:55]} 34. Rc3 {[%clk 0:00:52]}  Re8 {[%clk 0:01:46]} 35. d4 {[%clk 0:00:36]}  Re7 {[%clk 0:01:29]} 36. Nf1 {[%clk 0:00:34]}  Re4 {[%clk 0:01:28]} 37. Ne3 {[%clk 0:00:32]}  Nc6 {[%clk 0:01:24]} 38. Rd3 {[%clk 0:00:27]}  Ke6 {[%clk 0:01:21]} 39. Nc2 {[%clk 0:00:26]}  Kd7 {[%clk 0:01:16]} 40. Rd1 {[%clk 0:00:25]}  Kd6 {[%clk 0:01:10]} 41. Rh1 {[%clk 0:00:20]}  Nxd4 {[%clk 0:01:10]} 42. Ne3 {[%clk 0:00:21]}  Nxb3 {[%clk 0:01:06]} 43. Rxh5 {[%clk 0:00:21]}  d4 {[%clk 0:00:52]} 44. Nc4+ {[%clk 0:00:21]}  Kc6 {[%clk 0:00:52]} 45. Rf5 {[%clk 0:00:20]}  d3 {[%clk 0:00:33]} 46. Rxf6+ {[%clk 0:00:20]}  Kc5 {[%clk 0:00:33]} 47. Ne3 {[%clk 0:00:20]}  d2 {[%clk 0:00:31]} 48. Rf5+ {[%clk 0:00:20]}  Kb4 {[%clk 0:00:29]} 49. Rd5 {[%clk 0:00:20]}  Nd4 {[%clk 0:00:29]} 50. Nd1 {[%clk 0:00:19]}  Re2+ {[%clk 0:00:19]} 51. Kf1 {[%clk 0:00:19]}  Re1+ {[%clk 0:00:20]} 52. Kf2 {[%clk 0:00:19]}  Rxd1 {[%clk 0:00:20]} 53. Rxd4+ {[%clk 0:00:19]}  Kc3 {[%clk 0:00:21]} 54. Rd7 {[%clk 0:00:19]}  Re1 {[%clk 0:00:19]} 55. Rc7+ {[%clk 0:00:18]}  Kb4 {[%clk 0:00:18]} 56. Rxb7+ {[%clk 0:00:18]}  Kc5 {[%clk 0:00:19]} 57. Rc7+ {[%clk 0:00:12]}  Kb6 {[%clk 0:00:18]} 58. Rd7 {[%clk 0:00:08]}  d1=Q {[%clk 0:00:18]} 0-1


[Site "https://www.chess.com"]

[Event "Titled Tuesday Blitz December 7 2021"]
[White "Vidit, Santosh Gujrathi"]
[Black "Krivonosov, Oleg"]
[WhiteFideId "5029465"]
[BlackFideId "11600349"]
[WhiteElo "2628"]
[BlackElo "2469"]
[Result "1/2-1/2"]
[Round "03"]
[TimeControl "180+1"]
[Date "2021.12.07"]
[WhiteClock "0:00:11"]
[BlackClock "0:00:20"]

1. c4 {[%clk 0:03:00]}  e6 {[%clk 0:02:59]} 2. g3 {[%clk 0:02:57]}  d5 {[%clk 0:02:58]} 3. Bg2 {[%clk 0:02:57]}  Nf6 {[%clk 0:02:58]} 4. Nf3 {[%clk 0:02:57]}  Be7 {[%clk 0:02:57]} 5. O-O {[%clk 0:02:55]}  O-O {[%clk 0:02:57]} 6. d4 {[%clk 0:02:56]}  Nbd7 {[%clk 0:02:55]} 7. Qc2 {[%clk 0:02:55]}  c6 {[%clk 0:02:55]} 8. Rd1 {[%clk 0:02:49]}  b6 {[%clk 0:02:54]} 9. b3 {[%clk 0:02:49]}  Bb7 {[%clk 0:02:49]} 10. Nc3 {[%clk 0:02:48]}  Ba6 {[%clk 0:02:48]} 11. Qd3 {[%clk 0:02:47]}  Rc8 {[%clk 0:02:27]} 12. e4 {[%clk 0:02:43]}  dxe4 {[%clk 0:02:21]} 13. Nxe4 {[%clk 0:02:42]}  Nxe4 {[%clk 0:02:17]} 14. Qxe4 {[%clk 0:02:42]}  Bb7 {[%clk 0:02:04]} 15. Bf4 {[%clk 0:02:39]}  Nf6 {[%clk 0:01:59]} 16. Qe2 {[%clk 0:02:38]}  Bd6 {[%clk 0:01:46]} 17. Ne5 {[%clk 0:01:47]}  Qe7 {[%clk 0:01:42]} 18. Bg5 {[%clk 0:01:47]}  h6 {[%clk 0:01:35]} 19. Bxf6 {[%clk 0:01:47]}  gxf6 {[%clk 0:01:36]} 20. Ng4 {[%clk 0:01:37]}  f5 {[%clk 0:01:25]} 21. Ne5 {[%clk 0:01:37]}  Bxe5 {[%clk 0:01:21]} 22. dxe5 {[%clk 0:01:23]}  Rfd8 {[%clk 0:01:12]} 23. Rd2 {[%clk 0:01:22]}  c5 {[%clk 0:01:08]} 24. Rad1 {[%clk 0:01:16]}  Bxg2 {[%clk 0:01:06]} 25. Kxg2 {[%clk 0:01:17]}  Rxd2 {[%clk 0:00:59]} 26. Qxd2 {[%clk 0:01:17]}  Kg7 {[%clk 0:00:53]} 27. f3 {[%clk 0:00:57]}  Rc7 {[%clk 0:00:46]} 28. h4 {[%clk 0:00:49]}  Qe8 {[%clk 0:00:40]} 29. Qd6 {[%clk 0:00:46]}  Qe7 {[%clk 0:00:38]} 30. h5 {[%clk 0:00:37]}  Rb7 {[%clk 0:00:29]} 31. Qd2 {[%clk 0:00:32]}  Qg5 {[%clk 0:00:24]} 32. Qxg5+ {[%clk 0:00:27]}  hxg5 {[%clk 0:00:25]} 33. g4 {[%clk 0:00:28]}  fxg4 {[%clk 0:00:20]} 34. fxg4 {[%clk 0:00:29]}  b5 {[%clk 0:00:20]} 35. Rc1 {[%clk 0:00:20]}  b4 {[%clk 0:00:15]} 36. Rd1 {[%clk 0:00:20]}  a5 {[%clk 0:00:15]} 37. Kf3 {[%clk 0:00:09]}  a4 {[%clk 0:00:15]} 38. Ke4 {[%clk 0:00:08]}  Ra7 {[%clk 0:00:14]} 39. Rd3 {[%clk 0:00:03]}  axb3 {[%clk 0:00:14]} 40. axb3 {[%clk 0:00:03]}  Ra1 {[%clk 0:00:13]} 41. Rf3 {[%clk 0:00:04]}  Re1+ {[%clk 0:00:13]} 42. Re3 {[%clk 0:00:03]}  Rxe3+ {[%clk 0:00:12]} 43. Kxe3 {[%clk 0:00:04]}  Kh6 {[%clk 0:00:13]} 44. Kf3 {[%clk 0:00:04]}  Kg7 {[%clk 0:00:13]} 45. Ke2 {[%clk 0:00:05]}  Kh6 {[%clk 0:00:14]} 46. Ke3 {[%clk 0:00:06]}  Kg7 {[%clk 0:00:15]} 47. Ke4 {[%clk 0:00:07]}  Kh6 {[%clk 0:00:15]} 48. Kd3 {[%clk 0:00:07]}  Kg7 {[%clk 0:00:16]} 49. Ke3 {[%clk 0:00:08]}  Kh6 {[%clk 0:00:17]} 50. Kf3 {[%clk 0:00:09]}  Kg7 {[%clk 0:00:17]} 51. Kg3 {[%clk 0:00:09]}  Kh6 {[%clk 0:00:18]} 52. Kg2 {[%clk 0:00:10]}  Kg7 {[%clk 0:00:19]} 53. Kf3 {[%clk 0:00:11]}  Kh6 {[%clk 0:00:20]} 54. Ke4 {[%clk 0:00:11]}  Kg7 {[%clk 0:00:20]} 55. Ke3 {[%clk 0:00:11]} 1/2-1/2


[Site "https://www.chess.com"]

[Event "Titled Tuesday Blitz December 7 2021"]
[White "Villalba, Marcelo"]
[Black "Narayanan, Srinath"]
[WhiteFideId "3701859"]
[BlackFideId "5018420"]
[WhiteElo "2160"]
[BlackElo "2472"]
[Result "1-0"]
[Round "03"]
[TimeControl "180+1"]
[Date "2021.12.07"]
[WhiteClock "0:01:00"]
[BlackClock "0:01:05"]

1. e4 {[%clk 0:03:00]}  c6 {[%clk 0:02:59]} 2. d4 {[%clk 0:03:00]}  d5 {[%clk 0:03:00]} 3. exd5 {[%clk 0:03:00]}  cxd5 {[%clk 0:03:00]} 4. Bd3 {[%clk 0:03:00]}  Nc6 {[%clk 0:03:00]} 5. c3 {[%clk 0:03:00]}  Nf6 {[%clk 0:03:01]} 6. Ne2 {[%clk 0:03:00]}  e5 {[%clk 0:03:00]} 7. dxe5 {[%clk 0:02:57]}  Nxe5 {[%clk 0:03:01]} 8. O-O {[%clk 0:02:57]}  Nxd3 {[%clk 0:02:56]} 9. Qxd3 {[%clk 0:02:57]}  Be7 {[%clk 0:02:57]} 10. Bg5 {[%clk 0:02:46]}  h6 {[%clk 0:02:54]} 11. Bh4 {[%clk 0:02:45]}  O-O {[%clk 0:02:53]} 12. Nd2 {[%clk 0:02:45]}  Re8 {[%clk 0:02:31]} 13. Nd4 {[%clk 0:02:37]}  Bg4 {[%clk 0:02:29]} 14. Rfe1 {[%clk 0:02:29]}  Bh5 {[%clk 0:02:26]} 15. Nf5 {[%clk 0:02:12]}  g5 {[%clk 0:02:23]} 16. Nxh6+ {[%clk 0:01:56]}  Kf8 {[%clk 0:02:15]} 17. Bxg5 {[%clk 0:01:56]}  Qd7 {[%clk 0:01:52]} 18. Qd4 {[%clk 0:01:37]}  Kg7 {[%clk 0:01:12]} 19. Rxe7 {[%clk 0:01:20]}  Rxe7 {[%clk 0:01:06]} 20. Qxf6+ {[%clk 0:01:14]}  Kh7 {[%clk 0:01:07]} 21. Nf5 {[%clk 0:01:01]}  Qxf5 {[%clk 0:01:06]} 22. Qxf5+ {[%clk 0:01:00]}  Bg6 {[%clk 0:01:05]} 23. Qh3+ {[%clk 0:01:00]} 1-0


[Site "https://www.chess.com"]

[Event "Titled Tuesday Blitz December 7 2021"]
[White "Xiong, Jeffery"]
[Black "Vakhlamov, Igor L."]
[WhiteFideId "2047640"]
[BlackFideId "24126748"]
[WhiteElo "2727"]
[BlackElo "2416"]
[Result "1-0"]
[Round "03"]
[TimeControl "180+1"]
[Date "2021.12.07"]
[WhiteClock "0:00:20"]
[BlackClock "0:00:01"]

1. d4 {[%clk 0:03:00]}  d5 {[%clk 0:02:58]} 2. c4 {[%clk 0:03:01]}  c6 {[%clk 0:02:57]} 3. Nf3 {[%clk 0:03:01]}  Nf6 {[%clk 0:02:58]} 4. cxd5 {[%clk 0:03:02]}  cxd5 {[%clk 0:02:58]} 5. Nc3 {[%clk 0:03:03]}  Nc6 {[%clk 0:02:58]} 6. Bf4 {[%clk 0:03:03]}  a6 {[%clk 0:02:58]} 7. Rc1 {[%clk 0:03:04]}  Ne4 {[%clk 0:02:52]} 8. g3 {[%clk 0:02:49]}  Nxc3 {[%clk 0:02:50]} 9. bxc3 {[%clk 0:02:50]}  Bf5 {[%clk 0:02:49]} 10. Bg2 {[%clk 0:02:51]}  e6 {[%clk 0:02:48]} 11. c4 {[%clk 0:02:33]}  Ba3 {[%clk 0:02:28]} 12. cxd5 {[%clk 0:02:33]}  exd5 {[%clk 0:02:13]} 13. Nh4 {[%clk 0:02:34]}  Bxc1 {[%clk 0:02:11]} 14. Nxf5 {[%clk 0:02:30]}  Bxf4 {[%clk 0:02:09]} 15. gxf4 {[%clk 0:02:31]}  g6 {[%clk 0:01:53]} 16. Ne3 {[%clk 0:02:26]}  Qa5+ {[%clk 0:01:52]} 17. Kf1 {[%clk 0:02:23]}  Rd8 {[%clk 0:01:52]} 18. f5 {[%clk 0:02:23]}  O-O {[%clk 0:01:50]} 19. h4 {[%clk 0:02:23]}  Qc3 {[%clk 0:01:39]} 20. h5 {[%clk 0:02:22]}  Qxd4 {[%clk 0:01:36]} 21. Qc1 {[%clk 0:02:22]}  g5 {[%clk 0:01:24]} 22. h6 {[%clk 0:02:22]}  f6 {[%clk 0:01:23]} 23. Rh3 {[%clk 0:02:18]}  Rfe8 {[%clk 0:01:21]} 24. Nxd5 {[%clk 0:02:13]}  Nb4 {[%clk 0:00:51]} 25. Ne3 {[%clk 0:00:46]}  Nxa2 {[%clk 0:00:51]} 26. Qb1 {[%clk 0:00:46]}  Nc3 {[%clk 0:00:46]} 27. Qb3+ {[%clk 0:00:46]}  Kh8 {[%clk 0:00:46]} 28. Bf3 {[%clk 0:00:46]}  Nd1 {[%clk 0:00:31]} 29. Ng4 {[%clk 0:00:43]}  Re7 {[%clk 0:00:27]} 30. Kg2 {[%clk 0:00:39]}  Re4 {[%clk 0:00:15]} 31. Bxe4 {[%clk 0:00:24]}  Qxe4+ {[%clk 0:00:13]} 32. Qf3 {[%clk 0:00:25]}  Nc3 {[%clk 0:00:06]} 33. Nxf6 {[%clk 0:00:19]}  Qxf3+ {[%clk 0:00:04]} 34. Rxf3 {[%clk 0:00:20]}  Nxe2 {[%clk 0:00:04]} 35. Re3 {[%clk 0:00:21]}  Nf4+ {[%clk 0:00:04]} 36. Kh2 {[%clk 0:00:20]}  Rf8 {[%clk 0:00:01]} 37. Re7 {[%clk 0:00:20]} 1-0


[Site "https://www.chess.com"]